Cogmind - Beta 17 @@@ ROGUE MODE // 2026.07.20 @ 17:22:07 Player: Smol John Result: Destroyed self with Grenade Launcher Performance ------------- Evolutions (0) 0 Regions Visited (3) 600 Robots Destroyed (18) 90 Value Destroyed (234) 234 Prototype IDs (0) 0 Alien Tech Used (0) 0 Bonus (0) 0 TOTAL SCORE: 924 Bonus ------- None Cogmind --------- Core Integrity 0/250 Matter 279/300 Energy 100/100 System Corruption 0% Temperature Cool (0) Movement Core (100) Ox1 Location -10/Subcaves Parts ------- > --- POWER (1) -------- (None) > --- PROPULSION (2) --- (None) > --- UTILITY (2) ------ Small Storage Unit Targeting Computer > --- WEAPON (2) ------- (None) > --- INVENTORY (8) ---- Wheel Wheel High-capacity Storage Unit Huge Storage Unit Experimental Sensor Array Signal Interpreter Peak State ------------ > --- POWER ------------ Ion Engine > --- PROPULSION ------- Light Treads Light Treads > --- UTILITY ---------- Small Storage Unit Targeting Computer > --- WEAPON ----------- EM Pulse Gun EM Pulse Gun > --- INVENTORY -------- Ion Engine Wheel Wheel High-capacity Storage Unit Huge Storage Unit Experimental Sensor Array Medium Laser Grenade Launcher [Rating: 8] Favorites ----------- Power Ion Engine Engine Ion Engine Propulsion Light Treads Treads Light Treads Utility Small Storage Unit Storage Small Storage Unit Processor Targeting Computer Weapon EM Pulse Gun Energy Gun EM Pulse Gun Launcher Grenade Launcher Build | -11 -10 -10 -10 ------- Run | Yrd Mat Min Sub Slots Evolved . | . . . . Power . | . . . . Propulsion . | . . . . Utility . | . . . . Weapon . | . . . . Parts Attached 10 | 6 1 2 1 Power 2 | 1 . . 1 Engine 2 | 1 . . 1 Core . | . . . . Reactor . | . . . . Propulsion 2 | 2 . . . Treads 2 | 2 . . . Leg . | . . . . Wheel . | . . . . Hover . | . . . . Flight . | . . . . Utility 2 | 1 1 . . Device . | . . . . Storage 1 | 1 . . . Processor 1 | . 1 . . Hackware . | . . . . Protection . | . . . . Artifact . | . . . . Weapon 4 | 2 . 2 . Energy Gun 3 | 2 . 1 . Energy Cannon . | . . . . Ballistic Gun . | . . . . Ballistic Cannon . | . . . . Launcher 1 | . . 1 . Special Weapon . | . . . . Impact Weapon . | . . . . Slashing Weapon . | . . . . Piercing Weapon . | . . . . Special Melee Weapon . | . . . . Unidentified Prototypes . | . . . . Parts Lost 8 | . . 1 7 Power 2 | . . . 2 Propulsion 2 | . . . 2 Utility . | . . . . Weapon 4 | . . 1 3 Highest Loss Streak 7 | . . 1 7 To Critical Strikes 1 | . . . 1 Average Backups 7 | 3 7 7 7 Power . | . 1 1 . Propulsion 2 | 2 4 2 2 Utility 2 | . 1 3 4 Weapon 1 | . 1 1 . Tool/Special . | . . . . Unused Backups 10 | . . 4 6 Power 1 | . . 1 . Propulsion 4 | . . 2 2 Utility 4 | . . . 4 Weapon 1 | . . 1 . Tool/Special . | . . . . Average Slot Usage (%) 97 | . 97 99 82 Engine 13 | . 14 14 11 Treads 26 | . 28 28 18 Storage 14 | . 14 14 14 Processor 13 | . 11 14 14 Energy Gun 19 | . 28 19 14 Launcher 7 | . . 8 9 Peak Build Rating 8 | 6 7 8 8 Average Rating 7 | 4 6 7 6 On Entrance 5 | . 6 7 8 Avg Prop Armor Cover (%) . | . . . . Naked Turns . | . . . . Heaviest Build 15 | 14 14 15 15 Greatest Support 40 | 40 40 40 40 Greatest Overweight (x) 3 | . . . 3 Average Overweight (x) . | . . . . Largest Inventory Capacity 8 | 8 8 8 8 Average Capacity 7 | 6 8 8 8 Most Carried 8 | 6 8 8 8 Average Carried 7 | 3 7 7 7 Final Capacity 8 | 8 8 8 8 Final Carried 8 | 6 8 8 6 Class Distribution -------------------- 100% | Mutant Dominant Class ---------------- Mutant | -10/Materials Mutant | -10/Mines Mutant | -10/Subcaves Resources | -11 -10 -10 -10 ----------- Run | Yrd Mat Min Sub Matter Collected 407 | 236 34 103 34 Remotely . | . . . . Salvage Created 264 | . 48 132 84 Parts 31 | . 5 22 4 Haulers Intercepted . | . . . . Recyclers Shooed . | . . . . Parts Field Recycled . | . . . . Retrieved Matter . | . . . . Parts Self-Destructed 8 | . . . 8 Prevented . | . . . . Parts Restored . | . . . . Kills | -11 -10 -10 -10 ------- Run | Yrd Mat Min Sub Combat Hostiles Destroyed 14 | . 3 9 2 Guns 8 | . 3 4 1 AOE 6 | . . 5 1 Classes Destroyed 5 | . 1 3 1 Worker 2 | . . 2 . Builder 1 | . . 1 . Tunneler 1 | . . 1 . Swarmer 12 | . 3 9 . Subdweller 2 | . . . 2 Best Kill Streak 4 | . 3 4 1 Combat Bots Only 3 | . 3 3 1 Max Kills in Single Turn 2 | . 1 2 1 Gunslinging . | . . . . Exploded 2 | . . 2 1 Melee . | . . . . Uniques/NPCs Destroyed . | . . . . Combat | -11 -10 -10 -10 -------- Run | Yrd Mat Min Sub Hostile Shots Fired 66 | . 10 31 25 Missed 16 | . . 9 7 Hits 50 | . 10 22 18 Projectile 50 | . 10 22 18 AOE 3 | . . . 3 Critical Strikes 1 | . . . 1 Damage Taken 958 | . 76 245 637 Core 251 | . 12 8 231 Absorbed by Shields . | . . . . Core Remaining (%) 100 | 100 . . . Volleys Fired 46 | . 8 17 21 Largest 2 | . 2 2 2 Hottest 90 | . 80 80 90 Shots Fired 67 | . 16 27 24 Gun 54 | . 16 18 20 Cannon . | . . . . Launcher 13 | . . 9 4 Special . | . . . . Kinetic . | . . . . Thermal 17 | . . . 17 Explosive 13 | . . 9 4 Electromagnetic 37 | . 16 18 3 Robot Hit Streak 25 | . 8 4 25 Robot Miss Streak 5 | . 5 4 . Penetration Max . | . . . . Secondary Targets 2 | . 1 1 . Max Gunslinging Chain 1 | . 1 1 . Shots Hit Robots 43 | . 8 12 23 Core Hits 21 | . 3 15 3 Critical Kills . | . . . . Critical Parts Destroyed . | . . . . Critical Strikes 1 | . . . 1 Burn 1 | . . . 1 Melee Attacks . | . . . . Impact . | . . . . Slashing . | . . . . Piercing . | . . . . Sneak Attacks . | . . . . Combat Hostiles . | . . . . Follow-up Attacks . | . . . . Damage Inflicted 778 | . 83 489 206 Guns 272 | . 83 103 86 Cannons . | . . . . Explosions 482 | . . 362 120 Melee . | . . . . Ramming 24 | . . 24 . Kinetic . | . . . . Thermal 98 | . . 46 52 Explosive 436 | . . 316 120 Electromagnetic 220 | . 83 103 34 Impact . | . . . . Slashing . | . . . . Piercing . | . . . . Highest Corruption . | . . . . Average Corruption . | . . . . Corruption Purged . | . . . . Corruption Blocked . | . . . . Overload Shots . | . . . . Overflow Damage 40 | . . 7 33 Projectiles . | . . . . Explosions 40 | . . 7 33 Melee . | . . . . Knockbacks . | . . . . Impact . | . . . . Kinetic . | . . . . Secondary . | . . . . Self-Inflicted Damage 204 | . . 77 127 Shots 8 | . . 4 4 Rammed 4 | . . 4 . Targets Rammed 5 | . . 5 . Kicked . | . . . . Crushed 1 | . . 1 . Highest Temperature 90 | . 90 90 . Average Temperature 33 | . 37 30 . Received Heat Transfer 96 | . . . 96 Siege Activations . | . . . . Martial Activations . | . . . . Shielding Activations . | . . . . Robots Disrupted . | . . . . Combat Hostiles . | . . . . Robots Corrupted . | . . . . Combat Hostiles . | . . . . Parts Fried 1 | . 1 . . Impact Corruptions . | . . . . Robots Melted . | . . . . Combat Hostiles . | . . . . Parts Melted . | . . . . Heat Transferred 222 | . . . 222 Parts Sabotaged . | . . . . Parts Stolen . | . . . . Parts Stripped . | . . . . Power Chain Reactions 1 | . . 1 . Alert | -11 -10 -10 -10 ------- Run | Yrd Mat Min Sub Maximum Alert Level . | . . . . Low Security (%) 100 | 100 100 100 . Level 1 . | . . . . Level 2 . | . . . . Level 3 . | . . . . Level 4 . | . . . . Level 5 . | . . . . High Security . | . . . . Max Security . | . . . . Peak Influence 114 | . 70 114 . Initial 19 | . . 19 . Average 33 | . 15 38 . Influence Increases 378 | . 70 308 . Destroy 0b10 Robot/C 240 | . 60 180 . Destroy 0b10 Robot/NC 20 | . . 20 . Destroy Leader 40 | . 10 30 . Disable Machine 30 | . . 30 . Destroy Structure 48 | . . 48 . Influence Decreases 378 | . 20 358 . Entered New Map 31 | . . 31 . Time Decay 337 | . 20 317 . Lost Part 10 | . . 10 . Squads Dispatched . | . . . . Investigation . | . . . . Extermination . | . . . . Reinforcement . | . . . . Assault . | . . . . Garrison . | . . . . Intercept . | . . . . Searches Triggered . | . . . . Construction Impeded . | . . . . Haulers Reinforced . | . . . . Active Scanning Responses . | . . . . Cargo Convoy Interrupts . | . . . . Stealth | -11 -10 -10 -10 --------- Run | Yrd Mat Min Sub Distress Signals 1 | . 1 . . Communications Jammed . | . . . . Distress Signals . | . . . . Times Spotted 18 | . 6 9 3 Peak Tracking Total 5 | . 5 3 1 Tactical Retreats . | . . . . Traps | -11 -10 -10 -10 ------- Run | Yrd Mat Min Sub Traps Triggered 1 | . . . 1 Indirectly . | . . . . Trap Hack Attempts . | . . . . Triggered . | . . . . Disarmed . | . . . . Reprogrammed . | . . . . Reused . | . . . . Traps Extracted . | . . . . Installed . | . . . . Triggered . | . . . . Machines | -11 -10 -10 -10 ---------- Run | Yrd Mat Min Sub Machines Disabled 2 | . . 2 . Max in Single Turn 1 | . . 1 . Machines Repaired . | . . . . Machines Dismantled . | . . . . Machines Sabotaged . | . . . . Overloaded Fab Kills . | . . . . Hacking | -11 -10 -10 -10 --------- Run | Yrd Mat Min Sub Machines Accessed . | . . . . Terminals . | . . . . Fabricators . | . . . . Repair Stations . | . . . . Recycling Units . | . . . . Scanalyzers . | . . . . Garrison Access . | . . . . Total Hacks . | . . . . Successful . | . . . . Failed . | . . . . Catastrophic . | . . . . Database Lockouts . | . . . . Manual . | . . . . Terminals . | . . . . Fabricators . | . . . . Repair Stations . | . . . . Recycling Units . | . . . . Scanalyzers . | . . . . Garrison Access . | . . . . Terminal Hacks . | . . . . Fabricator Hacks . | . . . . Repair Station Hacks . | . . . . Recycling Unit Hacks . | . . . . Scanalyzer . | . . . . Garrison Access Hacks . | . . . . Unauthorized Hacks . | . . . . Terminals . | . . . . Fabricators . | . . . . Repair Stations . | . . . . Recycling Units . | . . . . Scanalyzers . | . . . . Garrison Access . | . . . . Data Cores Recovered . | . . . . Used . | . . . . Hacking Detections . | . . . . Full Trace Events . | . . . . Feedback Events . | . . . . Feedback Blocked . | . . . . Robot Schematics Acquired . | . . . . Robots Built . | . . . . Authchips . | . . . . Time . | . . . . Total Robot Build Rating . | . . . . Part Schematics Acquired . | . . . . Parts Built . | . . . . Authchips . | . . . . Time . | . . . . Total Part Build Rating . | . . . . Part Studies Acquired . | . . . . Parts Repaired . | . . . . Time . | . . . . Parts Recycled . | . . . . Recycled Matter . | . . . . Retrieved Matter . | . . . . Retrieved Components . | . . . . Parts Scanalyzed . | . . . . Part Schematics Acquired . | . . . . Parts Damaged . | . . . . Bothacking | -11 -10 -10 -10 ------------ Run | Yrd Mat Min Sub Used RIF Installer . | . . . . Robots Hacked . | . . . . Non-combat . | . . . . Combat . | . . . . Robot Hacks Applied . | . . . . Relay Couplers Released . | . . . . Fabnet Peak Effective % . | . . . . Robots Rewired . | . . . . Allies Hacked . | . . . . Hacks Repelled . | . . . . Allies | -11 -10 -10 -10 -------- Run | Yrd Mat Min Sub Total Allies . | . . . . Largest Group . | . . . . Highest-Rated Group . | . . . . Highest-Rated Ally . | . . . . Total Orders . | . . . . Ally Attacks . | . . . . Total Damage . | . . . . Kills . | . . . . Allies Corrupted . | . . . . Allies Melted . | . . . . Intel | -11 -10 -10 -10 ------- Run | Yrd Mat Min Sub Active Infowar (turns) . | . . . . Robot Analysis Total . | . . . . Derelict Logs Recovered 1 | . . 1 . Drone Launches . | . . . . Drone Recoveries . | . . . . Exploration | -11 -10 -10 -10 ------------- Run | Yrd Mat Min Sub Turns Passed 1675 | 92 126 1262 195 Spaces Moved 923 | 50 62 746 65 Core 19 | 2 . . 17 Treads 904 | 48 62 746 48 Legs . | . . . . Wheels . | . . . . Hover . | . . . . Flight . | . . . . Fastest Speed 50 | 50 160 160 150 Average Speed 159 | 155 160 160 162 Slowest Speed 200 | 160 160 160 200 Overloaded Moves . | . . . . Propulsion Burnouts . | . . . . Robots Hopped . | . . . . Potential Cave-ins . | . . . . Cave-ins Triggered . | . . . . Exploration Rate (%) 29 | 3 13 98 5 Regions Visited 3 Branch Regions 2 Pre-discovered Areas 2 | . . 2 . Known Exits Taken . | . . . . Unknown Exits Taken 3 | 1 1 1 . Scrap Searched 1 | . . 1 . Spaces Dug . | . . . . Terrain Destroyed 95 | . . 67 28 Melee . | . . . . Projectile . | . . . . AOE 95 | . . 67 28 Terrain Rammed . | . . . . Walls Destroyed . | . . . . Machines Disabled . | . . . . Actions | -11 -10 -10 -10 --------- Run | Yrd Mat Min Sub Total 1049 | 61 72 786 130 Wait 49 | . . 8 41 Move 920 | 49 61 745 65 Hop . | . . . . Pick Up 13 | 6 2 5 . Fast Attach 7 | 6 1 . . Attach 3 | . . 1 2 Detach . | . . . . Swap 2 | . . 1 1 Drop 4 | . . 4 . Fire 46 | . 8 17 21 Melee . | . . . . Ram . | . . . . Kick . | . . . . Crush 5 | . . 5 . Escape Stasis . | . . . . Rewire . | . . . . Trap . | . . . . Miscellaneous . | . . . . Route ------- -11/Scrapyard -10/Materials -10/Mines (discovered 3 exits: [*Mat x2] / [*Sub]) -10/Subcaves History --------- Turn | Location | Event 22 | -11/Scrapyard | Discovered new exit (range 15) 93 | -11/Scrapyard | Entered Materials 93 | -10/Materials | Discovered new exit (range 15) 219 | -10/Materials | Entered Mines 302 | -10/Mines | Build established: Mutant 334 | -10/Mines | YI-UF0 nonchalantly dropped a Grenade Launcher on the ground 387 | -10/Mines | Found a damaged Exp. Sensor Array with a note attached 390 | -10/Mines | Found Prototype Device 449 | -10/Mines | Learned location of Zion (-6) 807 | -10/Mines | Discovered new exit (range 11) 892 | -10/Mines | Discovered new exit (range 6) 1072 | -10/Mines | Discovered new exit (range 9) 1103 | -10/Mines | Learned location of Storage (-9) 1481 | -10/Mines | Entered Subcaves 1482 | -10/Subcaves | Approached by a straggling Scientist 1647 | -10/Subcaves | Core integrity fell below 50% 1659 | -10/Subcaves | Core integrity fell below 20% 1676 | -10/Subcaves | Destroyed self with Grenade Launcher Last Messages --------------- 01628_ Ion Engine destroyed. 01631_ Subatomizers dissect the Sub. Optics. 01643_ Subatomizers dissect the Sub. Optics, destroying it. 01652_ Critical hit (Destroy). 01652_ Med. Laser destroyed. 01653_ Subatomizers dissect the Sub. Power Source. 01658_ FS-A6F(R) destroyed. 01658_ Ion Engine destroyed. 01658_ Destroyed Ion Engine. 01659_ The unstable cave ceiling collapses. 01661_ Acquired 24 matter. 01664_ Subatomizers dissect the Sub. Power Source. 01665_ The unstable cave ceiling collapses. 01676_ Subatomizers dissect the Sub. Power Source. 01676_ Grenade Launcher destroyed. 01676_ Destroyed Grenade Launcher. Map ----- +----------------------------------------------------+ | ??????????????????????# ## ##???????????????? | | ??????????????????????# #????????????????? | | ????????????????????### #????????????????? | | ????????????????????# "#????????????????? | | ????????????????????## " "##????????????????? | | ?????????????????????## ##?????????????????? | | ??????????????????????## "##?????????????????? | | ???????????????????????##|&#?????????????????? | | ????????????????????##?##%&#?????????????????? | | ????????????????##### ##&"##?????????????????? | | ????????????????# " ##?????????????????? | | ????????????????# " #?????????????????? | | ????????????????# "##?????????????????? | | ????????????????# #?????????????????? | | ????????????????# #?????????????????? | | ????????????????### &%* "##?????????????????? | | ??????????????????# ^#?????????????????? | | ??????????????????# ###???????????????? | | ??????????????????## #???????????????? | | ???????????????????### # #???????????????? | | ????????????????????# # #???????????????? | | ????????????????????# #???????????????? | | ????????????????????## #???????????????? | | ?????????????????????# #???????????????? | | ?????????????????????### # ###??????????????? | | ??????????????????????## @##""##?????????????? | | ??????????????????????# " ""#?????????????? | | ??????????????????????# " "#?????????????? | | ??????????????????????# " ##?????????????? | | ??????????????????????## """##??????????????? | | ???????????????????????## ##"#???????????????? | | ???????????????????????? #?##???????????????? | | ???????????????????????? #??????????????????? | | ???????????????????????## #??????????????????? | | ????????????????????????# #??????????????????? | | ???????????????????????? " ??????????????????? | | ???????????????????????? ??????????????????? | | ???????????????????????? ??????????????????? | | ???????????????????????? #??????????????????? | | ???????????????????????? ????????????????????? | | ????????????????????????#????????????????????? | | ?????????????????????????????????????????????? | | ?????????????????????????????????????????????? | | ?????????????????????????????????????????????? | | ?????????????????????????????????????????????? | | ?????????????????????????????????????????????? | | ?????????????????????????????????????????????? | | ?????????????????????????????????????????????? | | ?????????????????????????????????????????????? | | ?????????????????????????????????????????????? | +----------------------------------------------------+ Best States ------------- Heat Dissipation 25 Energy Generation 10 Energy Capacity 250 Matter Stores 300 Matter Capacity 300 Sight Range 16 Terrain Scan Density 10 Evasion (%) 40 Targeting Accuracy 5 Recoil Reduction 2 Item Schematics ----------------- None Robot Schematics ------------------ None Fabricated ------------ Nothing Repaired ---------- Nothing Studied --------- None Alien Tech Used ----------------- None Achievements -------------- None Challenges ------------ None Game ------ Seed MiningComponentMaxwheels Manual? 0 Play Time 00:08:52 Cumulative 43.4 hours Start 2026.07.20 @ 17:14:24 End 2026.07.20 @ 17:22:07 Sessions 1 Manual Loads 0 Difficulty Rogue Special Mode None Game No. 65 Rogue 65 Adventurer 0 Explorer 0 Win Type - Total 1 Types 1/0/0/0/0/0/0/0/0/0 Lore% 30 Gallery% 33 Achievement% 26 Wizard Run 0 Options --------- Layout 1 ASCII 0 Keyboard 0 Movement Numpad Keybinds 0 Fullscreen 1 Font 20/SmallcapsGlow Map View 50x35 Zoom Use 0% Tactical HUD 1 Map Filters NONE Filters NONE Steam 1 RUN: 8510dec6-d9e6-4c8d-96fa-d3e719d95749